fUST/lending_fUST_20241212
["ID","MTS","AMOUNT","RATE_DAILY","PERIOD"]
[345064982,1733969355516,-155.77,0.0003,31]
[345064983,1733969355544,-155.77,0.0003,31]
[345064984,1733969355579,-155.77,0.0003,31]
[345064985,1733969355607,-155.77,0.0003,31]
[345064986,1733969355634,-155.77,0.0003,31]
[345064987,1733969355662,-155.77,0.0003,31]
[345064988,1733969355687,-155.77,0.0003,31]
[345064989,1733969355715,-155.77,0.0003,31]
[345064990,1733969355742,-155.77,0.000302,31]
[345064991,1733969355767,-155.77,0.000302,31]
[345064992,1733969355806,-155.77,0.000302,31]
[345064993,1733969355839,-155.77,0.000302,31]
[345064994,1733969355869,-155.77,0.000302,31]
[345064995,1733969355899,-155.77,0.000302,31]
[345064996,1733969355930,-155.77,0.000302,31]
[345064997,1733969355960,-155.77,0.000302,31]
[345064998,1733969355989,-155.77,0.000303,31]
[345064999,1733969356019,-155.77,0.000303,31]
[345065000,1733969356051,-155.77,0.000303,31]
[345065001,1733969356082,-155.77,0.000303,31]
[345065002,1733969356109,-155.77,0.000303,31]
[345065003,1733969356142,-155.77,0.000303,31]
[345065004,1733969356171,-155.77,0.000303,31]
[345065005,1733969356199,-155.77,0.000303,31]
[345065006,1733969356227,-155.77,0.000305,31]
[345065007,1733969356256,-155.77,0.000305,31]
[345065008,1733969356284,-155.77,0.000305,31]
[345065009,1733969356314,-155.77,0.000305,31]
[345065010,1733969356344,-155.77,0.000305,31]
[345065011,1733969356372,-155.77,0.000305,31]
[345065012,1733969356521,-250.0,0.00031,120]
[345065013,1733969356548,-491.79900243,0.000312,30]
[345065014,1733969356576,-3000.0,0.00031506,30]
[345065015,1733969356600,-3000.0,0.00031506,30]
[345065016,1733969356624,-3000.0,0.00031506,30]
[345065017,1733969356647,-3000.0,0.00031506,30]
[345065018,1733969356672,-3000.0,0.00031506,30]
[345065019,1733969356697,-3000.0,0.00031506,30]
[345065020,1733969356720,-3000.0,0.00031506,30]
[345065021,1733969356744,-3000.0,0.00031506,30]
[345065022,1733969356768,-3000.0,0.00031506,30]
[345065023,1733969356792,-3000.0,0.00031506,30]
[345065024,1733969356821,-3000.0,0.00031506,30]
[345065025,1733969356847,-3000.0,0.00031506,30]
[345065026,1733969356872,-3000.0,0.00031506,30]
[345065027,1733969356897,-3000.0,0.00031506,30]
[345065028,1733969356922,-3000.0,0.00031506,30]
[345065029,1733969356947,-3000.0,0.00031506,30]
[345065030,1733969356972,-3000.0,0.00031506,30]
[345065031,1733969356996,-3000.0,0.00031506,30]
[345065032,1733969357020,-3000.0,0.00031506,30]
[345065033,1733969357047,-3000.0,0.00031506,30]
[345065034,1733969357082,-3000.0,0.00031506,30]
[345065035,1733969357127,-1269.87288903,0.00031506,30]
[345065036,1733969357171,-1000.0,0.00031506,116]
[345065037,1733969357214,-1000.0,0.00031506,116]
[345065038,1733969357255,-1000.0,0.00031506,116]
[345065039,1733969357298,-1000.0,0.00031506,116]
[345065040,1733969357343,-1000.0,0.00031506,116]
[345065041,1733969357384,-1000.0,0.00031506,116]
[345065042,1733969357422,-1000.0,0.00031506,116]
[345065043,1733969357459,-1000.0,0.00031506,116]
[345065044,1733969357495,-1000.0,0.00031506,116]
[345065045,1733969357534,-1000.0,0.00031506,116]
[345065046,1733969357577,-1000.0,0.00031506,116]
[345065047,1733969357615,-1000.0,0.00031506,116]
[345065048,1733969357651,-1000.0,0.00031506,116]
[345065049,1733969357688,-1000.0,0.00031506,116]
[345065050,1733969357724,-1000.0,0.00031506,116]
[345065051,1733969357760,-1000.0,0.00031506,116]
[345065052,1733969357796,-1000.0,0.00031506,116]
[345065053,1733969357835,-1000.0,0.00031506,116]
[345065054,1733969357872,-1000.0,0.00031506,116]
[345065055,1733969357908,-1000.0,0.00031506,116]
[345065056,1733969357945,-1000.0,0.00031506,116]
[345065057,1733969358115,-799.65292665,0.00031506,116]
[345065058,1733969358141,-6675.97,0.000318,30]
[345065059,1733969358167,-2114.66902227,0.00032,120]
[345065060,1733969358192,-500.0,0.00032,120]
[345065061,1733969358218,-151.0,0.00032082,120]
[345065062,1733969358242,-777.15305308,0.000325,30]
[345065063,1733969358266,-3400.0,0.000325,30]
[345065064,1733969358291,-3400.0,0.000325,30]
[345065065,1733969358318,-3400.0,0.000325,30]
[345065066,1733969358342,-3400.0,0.000325,30]
[345065067,1733969358367,-3400.0,0.000325,30]
[345065068,1733969358392,-3400.0,0.000325,30]
[345065069,1733969358417,-3400.0,0.000325,30]
[345065070,1733969358441,-3400.0,0.000325,30]
[345065071,1733969358466,-3400.0,0.000325,30]
[345065072,1733969358495,-3400.0,0.000325,30]
[345065073,1733969358522,-3400.0,0.000325,30]
[345065074,1733969358571,-3400.0,0.000325,30]
[345065075,1733969358601,-3400.0,0.000325,30]
[345065076,1733969358630,-4806.81341611,0.000325,30]
[345065077,1733969358658,-1900.0,0.000325,30]
[345065078,1733969358686,-1900.0,0.000325,30]
[345065079,1733969358712,-1900.0,0.000325,30]
[345065080,1733969358739,-1900.0,0.000325,30]
[345065081,1733969358766,-1900.0,0.000325,30]
[345065082,1733969358794,-1900.0,0.000325,30]
[345065083,1733969358822,-1900.0,0.000325,30]
[345065084,1733969358848,-1900.0,0.000325,30]
[345065085,1733969358874,-1900.0,0.000325,30]
[345065086,1733969358901,-500.0,0.000325,30]
[345065087,1733969358926,-1900.0,0.000325,30]
[345065088,1733969358954,-500.0,0.000325,30]
[345065089,1733969358979,-1900.0,0.000325,30]
[345065090,1733969359005,-500.0,0.000325,30]
[345065091,1733969359031,-1900.0,0.000325,30]
[345065092,1733969359061,-500.0,0.000325,30]
[345065093,1733969359086,-1900.0,0.000325,30]
[345065094,1733969359112,-500.0,0.000325,30]
[345065095,1733969359137,-856.3812455,0.000325,30]
[345065096,1733969359161,-3529.5997599,0.000325,30]
[345065097,1733969359187,-151.0,0.00032603,120]
[345065098,1733969359212,-500.0,0.00032876,45]
[345065099,1733969359237,-500.0,0.00032876,49]
[345065100,1733969359261,-500.42590667,0.00032876,53]
[345065101,1733969359287,-185.12484045,0.00032876,120]
[345065102,1733969359313,-500.0,0.00033,120]
[345065103,1733969359337,-1000.0,0.00033,120]
[345065104,1733969359465,-3400.0,0.000331,30]
[345065105,1733969359491,-3400.0,0.000331,30]
[345065106,1733969359517,-3400.0,0.000331,30]
[345065107,1733969359543,-3400.0,0.000331,30]
[345065108,1733969359571,-3400.0,0.000331,30]
[345065109,1733969359597,-3400.0,0.000331,30]
[345065110,1733969359621,-3400.0,0.000331,30]
[345065111,1733969359645,-3400.0,0.000331,30]
[345065112,1733969359669,-3400.0,0.000331,30]
[345065113,1733969359693,-3400.0,0.000331,30]
[345065114,1733969359718,-500.0,0.000331,30]
[345065115,1733969359742,-3400.0,0.000331,30]
[345065116,1733969359766,-3400.0,0.000331,30]
[345065117,1733969359790,-3400.0,0.000331,30]
[345065118,1733969359816,-3400.0,0.000331,30]
[345065119,1733969359841,-3400.0,0.000331,30]
[345065120,1733969359867,-1900.0,0.000331,30]
[345065121,1733969359892,-1900.0,0.000331,30]
[345065122,1733969359918,-1900.0,0.000331,30]
[345065123,1733969359943,-1900.0,0.000331,30]
[345065124,1733969359967,-1900.0,0.000331,30]
[345065125,1733969359997,-1900.0,0.000331,30]
[345065126,1733969360023,-1900.0,0.000331,30]
[345065127,1733969360049,-1900.0,0.000331,30]
[345065128,1733969360076,-1900.0,0.000331,30]
[345065129,1733969360102,-1900.0,0.000331,30]
[345065130,1733969360127,-1900.0,0.000331,30]
[345065131,1733969360152,-1900.0,0.000331,30]
[345065132,1733969360177,-1900.0,0.000331,30]
[345065133,1733969360202,-1900.0,0.000331,30]
[345065134,1733969360227,-1900.0,0.000331,30]
[345065135,1733969360252,-500.0,0.000331,30]
[345065136,1733969360277,-500.0,0.000331,30]
[345065137,1733969360301,-500.0,0.000331,30]
[345065138,1733969360329,-500.0,0.000331,30]
[345065139,1733969360355,-500.0,0.000331,30]
[345065140,1733969360379,-500.0,0.000331,30]
[345065141,1733969360404,-150.25,0.000335,30]
[345065142,1733969360428,-402.219,0.0003385,120]
[345065143,1733969360454,-500.0,0.00034,120]
[345065144,1733969360478,-15470.46545254,0.00034,120]
[345065145,1733969360502,-6675.97,0.00034,30]
[345065146,1733969360533,-250.0,0.00034,30]
[345065147,1733969360560,-151.0,0.00034164,120]
[345065148,1733969360585,-3277.87912017,0.00034555,120]
[345065149,1733969360610,-1499.5658096,0.00035,120]
[345065150,1733969360634,-500.0,0.00035,120]
[345065151,1733969360658,-1333.0,0.00035,30]
[345065152,1733969360684,-373.62586407,0.00035,120]
[345065153,1733969360709,-1000.0,0.00035,120]
[345065154,1733969360735,-5840.97536029,0.00035,120]
[345065155,1733969360760,-3565.40695137,0.00035,120]
[345065156,1733969360784,-150.0,0.00035,69]
[345065157,1733969360810,-1388.92690072,0.00035,120]
[345065158,1733969360836,-249.999999,0.00035,60]
[345065159,1733969360863,-402.145,0.0003505,120]
[345065160,1733969360887,-151.0,0.00035205,120]
[345065161,1733969360910,-500.0,0.00035616,30]
[345065162,1733969360934,-503.80731541,0.00035616,30]
[345065163,1733969360958,-429.554477,0.00035616,120]
[345065164,1733969370873,-1692.66115864,0.00030935,120]
[345065165,1733969370899,-161.78721446,0.00030935,30]
[345065166,1733969370926,-200000.0,0.00030935,120]
[345065167,1733969370953,-1413.0,0.00030935,33]
[345065168,1733969370979,-5693.25256542,0.00030935,120]
[345065169,1733969371004,-291039.29906148,0.00030935,30]
[345065170,1733969374854,-500000.0,0.00030935,30]
[345065171,1733969378179,-253629.50321905,0.00030935,30]
[345065172,1733969378205,-352.297102,0.00030935,120]
[345065173,1733969378231,-33395.12041985,0.00030935,120]
[345065174,1733969378257,-5530.267473,0.00030935,30]
[345065175,1733969378283,-762.3,0.00030935,30]
[345065176,1733969378307,-762.3,0.00030935,60]
[345065177,1733969378336,-762.299999,0.00030935,90]
[345065178,1733969378362,-762.299999,0.00030935,120]
[345065179,1733969378388,-150.0,0.00030935,30]
[345065197,1733969433053,-162.97286763,0.000249,2]
[345065199,1733969433063,-258.51978883,0.00024999,2]
[345065201,1733969433074,-41.48021117,0.00024999,2]
[345065204,1733969433084,-300.0,0.00024999,2]
[345065206,1733969433093,-8494.50841773,0.00025,2]
[345065270,1733969445178,-1024.99086915,0.00025,2]
[345065271,1733969445189,-2491.525706,0.00025,2]
[345065272,1733969445201,-161.627221,0.00025156,2]
[345065273,1733969445211,-420.0,0.00027082,2]
[345065274,1733969445220,-1677.57641551,0.00027436,2]
[345065275,1733969445229,-420.0,0.00027499,2]
[345065276,1733969445238,-1341.06575293,0.00027822,2]
[345065277,1733969445249,-499.9967325,0.00027822,2]
[345065294,1733969585086,161.627221,0.00013973,2]
[345065340,1733970510607,972.33937659,0.0002,2]
[345065341,1733970520965,58621.66337458,0.0001999,2]
[345065342,1733970520998,26780.36716183,0.0001999,2]
[345065344,1733970553771,161.627221,0.00013973,2]
[345065363,1733970632125,-300.0,0.00026788,2]
[345065364,1733970632135,-300.0,0.00026788,2]
[345065365,1733970632145,-8870.39021011,0.00026789,2]
[345065366,1733970632155,-178.5741714,0.00026997,2]
[345065367,1733970632165,-2164.62675335,0.00027097,2]
[345065368,1733970632265,-6705.76345676,0.00027097,2]
[345065369,1733970632275,-8844.867209,0.00027313,2]
[345065415,1733970638223,-162.5381692,0.00027374,2]
[345065418,1733970638233,-207.46183079,0.00027586,2]
[345066283,1733971449510,161.627221,0.00013973,2]
[345066296,1733971832273,-300.0,0.0002649,2]
[345066298,1733971832283,-300.0,0.0002649,2]
[345066299,1733971832294,-1779.499984,0.00026491,2]
[345066301,1733971832499,-2681.07664386,0.00026491,2]
[345066302,1733971832513,-3186.39294601,0.00026491,2]
[345066337,1733971840306,-15045.03520033,0.00026491,2]
[345066338,1733971840316,-37764.26570579,0.00027363,2]
[345066339,1733971840326,-243.5308962,0.00027363,2]
[345066340,1733971840336,-2777.07870488,0.00027363,2]
[345066357,1733971843467,-637.19755019,0.00027363,2]
[345066377,1733972783355,166.6111777,0.000261,60]
[345066380,1733972816316,162.995085,0.00013973,2]
[345066409,1733973032656,-556.86521642,0.00026166,2]
[345066412,1733973032670,-345.74596567,0.00026166,2]
[345066414,1733973032684,-1566.54940428,0.00026166,2]
[345066416,1733973032697,-288.16111232,0.00026166,2]
[345066419,1733973032707,-345.74596567,0.0002643,2]
[345066482,1733973038679,-81.25903433,0.0002643,2]
[345066483,1733973038689,-241.136867,0.00026783,2]
[345066485,1733973038701,-314.86604179,0.000268,2]
[345066488,1733973038711,-300.0,0.0002707,2]
[345066489,1733973038720,-300.0,0.0002707,2]
[345066492,1733973038730,-5274.17512536,0.00027107,2]
[345066494,1733973038740,-1000.0,0.000272,2]
[345066496,1733973038750,-6901.04041405,0.00027227,2]
[345066498,1733973038761,-5927.11004655,0.00027227,2]
[345066500,1733973038771,-196.91777357,0.00027363,2]
[345066502,1733973038781,-241.136867,0.00027774,2]
[345066504,1733973038791,-150.01,0.00027821,2]
[345066506,1733973038800,-351.3853278,0.00028055,30]
[345066508,1733973038810,-351.3853278,0.00028055,30]
[345066510,1733973038819,-351.3853278,0.00028055,30]
[345066512,1733973038828,-351.3853278,0.00028055,30]
[345066514,1733973038838,-158.9697525,0.00028055,30]
[345066516,1733973038847,-241.136867,0.00028765,2]
[345066518,1733973038857,-1000.0,0.000288,21]
[345066520,1733973038866,-232.78828901,0.00028918,2]
[345066522,1733973038875,-378.32008074,0.00028923,7]
[345066524,1733973038885,-1278.0,0.00029,14]
[345066526,1733973038894,-150.0,0.00029018,2]
[345066528,1733973038903,-2370.0,0.00029018,2]
[345066530,1733973038912,-385.67262743,0.00029018,2]
[345066678,1733973040677,-265.93682087,0.00029018,2]
[345067033,1733973044778,-1508.3905517,0.00029018,2]
[345067035,1733973044788,-232.78828897,0.00029039,2]
[345067037,1733973044797,-232.78828897,0.00029159,2]
[345067039,1733973044806,-155.31538367,0.00029186,2]
[345067041,1733973044815,-210.0,0.0002919,26]
[345067043,1733973044826,-1000.0,0.000292,29]
[345067045,1733973044840,-168.37684405,0.00029263,22]
[345067047,1733973044849,-385.70067535,0.00029264,2]
[345067049,1733973044861,-34.29932465,0.00029264,2]
[345067051,1733973044870,-173.93417771,0.00029279,2]
[345067053,1733973044880,-500.0,0.00029279,2]
[345067055,1733973044889,-356.82334193,0.00029279,2]
[345067057,1733973044898,-40.55099792,0.00029279,2]
[345067229,1733973046580,-459.44900208,0.00029279,2]
[345067231,1733973046596,-500.0,0.00029279,2]
[345067233,1733973046605,-500.0,0.00029279,2]
[345067235,1733973046614,-500.0,0.00029279,2]
[345067237,1733973046625,-500.0,0.00029279,2]
[345067239,1733973046635,-500.0,0.00029279,2]
[345067241,1733973046644,-500.0,0.00029279,2]
[345067243,1733973046653,-500.0,0.00029279,2]
[345067245,1733973046663,-452.6630146,0.00029279,2]
[345067247,1733973046672,-500.0,0.00029279,2]
[345067249,1733973046681,-500.0,0.00029279,2]
[345067251,1733973046691,-500.0,0.00029279,2]
[345067253,1733973046700,-500.0,0.00029279,2]
[345067255,1733973046709,-500.0,0.00029279,2]
[345067257,1733973046718,-500.0,0.00029279,2]
[345067259,1733973046727,-500.0,0.00029279,7]
[345067261,1733973046736,-500.0,0.00029279,2]
[345067263,1733973046745,-356.99056999,0.00029279,2]
[345067265,1733973046754,-378.25588183,0.00029279,2]
[345067267,1733973046763,-336.0020568,0.00029279,2]
[345067269,1733973046773,-500.0,0.0002928,2]
[345067271,1733973046782,-10316.1160539,0.0002928,2]
[345067961,1733973847904,165.216662,0.00013973,2]
[345067985,1733974113770,233.6317304,0.00023,60]
[345067986,1733974118768,479.47285086,0.00026,60]
[345067987,1733974120039,339.48439212,0.00025,120]
[345068314,1733974236435,-3288.59718365,0.00025,7]
[345068315,1733974236445,-6178.24607497,0.00025,2]
[345068316,1733974236456,-300.0,0.00025998,2]
[345068317,1733974236466,-300.0,0.00025998,2]
[345068318,1733974236476,-1007.8,0.00026,31]
[345068319,1733974236486,-242.47078943,0.00026,15]
[345068320,1733974236495,-176.282187,0.0002775,2]
[345068321,1733974236505,-364.7473914,0.00027797,2]
[345068322,1733974236514,-442.801,0.0002782,2]
[345068323,1733974236524,-734.7374436,0.00027855,2]
[345068324,1733974236534,-420.0,0.00028136,2]
[345068325,1733974236543,-425.9177282,0.00028466,30]
[345068326,1733974236552,-393.5398284,0.00028466,30]
[345068327,1733974236562,-153.0,0.00028466,30]
[345068328,1733974236571,-445.858534,0.00028466,30]
[345068329,1733974236581,-153.0,0.00028466,30]
[345068330,1733974236591,-153.0,0.00028478,30]
[345068331,1733974236600,-153.0,0.00028578,30]
[345068332,1733974236611,-420.0,0.00028598,2]
[345068333,1733974236621,-1144.98220863,0.00028936,2]
[345068334,1733974236630,-2160.0,0.00028969,2]
[345068335,1733974236639,-978.96,0.00028969,2]
[345068336,1733974236649,-176.282187,0.00029119,2]
[345068337,1733974236659,-69.11699635,0.0002918,2]
[345068415,1733974240907,-86.19838728,0.0002918,2]
[345068417,1733974240917,-210.0,0.0002919,26]
[345068418,1733974240927,-500.0,0.00029273,5]
[345068420,1733974240936,-632.53707973,0.00029273,5]
[345068422,1733974240945,-243.53089618,0.00029279,2]
[345068424,1733974240955,-194.1812856,0.00029279,2]
[345068427,1733974240967,-13529.89354034,0.00029279,2]
[345068429,1733974240977,-501.67577922,0.00029279,2]
[345068431,1733974240989,-150.01,0.00029279,2]
[345068433,1733974240999,-500.0,0.00029279,2]
[345068435,1733974241008,-500.0,0.00029279,2]
[345068437,1733974241018,-334.52140493,0.00029279,2]
[345068439,1733974241029,-500.0,0.00029279,2]
[345068441,1733974241038,-215.3134971,0.00029279,2]
[345068443,1733974241048,-281.85700985,0.00029279,2]
[345068445,1733974241059,-274.0821024,0.00029279,2]
[345068447,1733974241069,-151.0,0.00029279,7]
[345068449,1733974241079,-151.0,0.00029279,7]
[345068451,1733974241088,-500.0,0.00029279,2]
[345068453,1733974241098,-500.0,0.00029279,2]
[345068455,1733974241107,-500.0,0.00029279,2]
[345068457,1733974241116,-500.0,0.00029279,2]
[345068459,1733974241125,-500.0,0.00029279,2]
[345068461,1733974241135,-500.0,0.00029279,2]
[345068463,1733974241144,-500.0,0.00029279,2]
[345068464,1733974241154,-500.0,0.00029279,2]
[345068466,1733974241164,-500.0,0.00029279,2]
[345068468,1733974241174,-500.0,0.00029279,2]
[345068470,1733974241184,-500.0,0.00029279,2]
[345068473,1733974241194,-500.0,0.00029279,2]
[345068474,1733974241203,-500.0,0.00029279,2]
[345068476,1733974241213,-287.10205378,0.00029279,2]
[345068478,1733974241223,-500.0,0.00029279,2]
[345068480,1733974241232,-500.0,0.00029279,2]
[345068482,1733974241242,-500.0,0.00029279,2]
[345068484,1733974241251,-500.0,0.00029279,2]
[345068486,1733974241260,-500.0,0.00029279,2]
[345068488,1733974241269,-500.0,0.00029279,2]
[345068490,1733974241278,-500.0,0.00029279,2]
[345068492,1733974241288,-500.0,0.00029279,2]
[345068494,1733974241297,-500.0,0.00029279,2]
[345068495,1733974241308,-500.0,0.00029279,2]
[345068496,1733974241317,-500.0,0.00029279,2]
[345068497,1733974241327,-500.0,0.00029279,2]
[345068498,1733974241337,-500.0,0.00029279,2]
[345068499,1733974241347,-500.0,0.00029279,2]
[345068500,1733974241357,-500.0,0.00029279,2]
[345068501,1733974241375,-500.0,0.00029279,2]
[345068502,1733974241395,-500.0,0.00029279,2]
[345068503,1733974241405,-500.0,0.00029279,2]
[345068504,1733974241415,-500.0,0.00029279,2]
[345068505,1733974241424,-500.0,0.00029279,2]
[345068506,1733974241434,-500.0,0.00029279,2]
[345068507,1733974241443,-500.0,0.00029279,2]
[345068508,1733974241452,-500.0,0.00029279,2]
[345068509,1733974241462,-500.0,0.00029279,2]
[345068510,1733974241471,-500.0,0.00029279,2]
[345068511,1733974241481,-500.0,0.00029279,2]
[345068512,1733974241491,-500.0,0.00029279,2]
[345068513,1733974241501,-500.0,0.00029279,2]
[345068514,1733974241511,-500.0,0.00029279,2]
[345068515,1733974241521,-500.0,0.00029279,2]
[345068516,1733974241530,-500.0,0.00029279,2]
[345068517,1733974241539,-500.0,0.00029279,2]
[345068518,1733974241549,-500.0,0.00029279,2]
[345068519,1733974241559,-500.0,0.00029279,2]
[345068520,1733974241568,-500.0,0.00029279,2]
[345068521,1733974241577,-500.0,0.00029279,2]
[345068522,1733974241586,-500.0,0.00029279,2]
[345068523,1733974241595,-500.0,0.00029279,2]
[345068524,1733974241605,-500.0,0.00029279,2]
[345068525,1733974241614,-500.0,0.00029279,2]
[345068526,1733974241624,-500.0,0.00029279,2]
[345068527,1733974241634,-500.0,0.00029279,2]
[345068528,1733974241643,-500.0,0.00029279,2]
[345068529,1733974241654,-500.0,0.00029279,2]
[345068530,1733974241664,-500.0,0.00029279,2]
[345068531,1733974241673,-500.0,0.00029279,2]
[345068532,1733974241683,-500.0,0.00029279,2]
[345068533,1733974241692,-500.0,0.00029279,2]
[345068534,1733974241702,-200.0,0.00029279,2]
[345068535,1733974241713,-151.0,0.00029279,7]
[345068536,1733974241724,-151.0,0.00029279,7]
[345068537,1733974241734,-151.0,0.00029279,7]
[345068538,1733974241744,-241.396443,0.00029279,7]
[345068539,1733974241755,-241.396443,0.00029279,7]
[345068540,1733974241764,-241.396443,0.00029279,7]
[345068541,1733974241774,-241.396443,0.00029279,7]
[345068542,1733974241783,-241.396443,0.00029279,7]
[345068543,1733974241793,-241.396443,0.00029279,7]
[345068544,1733974241803,-619.392357,0.00029279,7]
[345068545,1733974241813,-82.77359737,0.00029279,7]
[345068596,1733974244709,-500.0,0.00029273,2]
[345068598,1733974244719,-500.0,0.00029273,3]
[345068600,1733974244728,-536.61875963,0.00029279,7]
[345068602,1733974244737,-619.392357,0.00029279,7]
[345068604,1733974244747,-619.392357,0.00029279,7]
[345068606,1733974244756,-95.97152637,0.00029279,7]
[345068608,1733974244768,-523.42083063,0.00029279,7]
[345068610,1733974244778,-619.392357,0.00029279,7]
[345068612,1733974244787,-341.494993,0.00029279,7]
[345068614,1733974244796,-341.494993,0.00029279,7]
[345068616,1733974244805,-341.494993,0.00029279,7]
[345068618,1733974244814,-341.494993,0.00029279,7]
[345068620,1733974244824,-341.494993,0.00029279,7]
[345068622,1733974244833,-341.494993,0.00029279,7]
[345068624,1733974244843,-498.532197,0.00029279,7]
[345068628,1733974244852,-498.532197,0.00029279,7]
[345068631,1733974244862,-498.532197,0.00029279,7]
[345068634,1733974244871,-498.532197,0.00029279,7]
[345068637,1733974244882,-498.532197,0.00029279,7]
[345068640,1733974244891,-498.532197,0.00029279,7]
[345068644,1733974244901,-151.0,0.00029279,7]
[345068648,1733974244911,-151.0,0.00029279,7]
[345068652,1733974244921,-151.0,0.00029279,7]
[345068656,1733974244931,-151.0,0.00029279,7]
[345068659,1733974244940,-151.0,0.00029279,7]
[345068661,1733974244949,-151.0,0.00029279,7]
[345068663,1733974244960,-151.0,0.00029279,7]
[345068665,1733974244969,-151.0,0.00029279,7]
[345068667,1733974244979,-151.0,0.00029279,7]
[345068669,1733974244992,-151.0,0.00029279,7]
[345068671,1733974245002,-665.73725815,0.00029279,7]
[345068825,1733974246630,-217.87545885,0.00029279,7]
[345068827,1733974246652,-883.612717,0.00029279,7]
[345068829,1733974246662,-883.612717,0.00029279,7]
[345068831,1733974246675,-883.612717,0.00029279,7]
[345068833,1733974246685,-883.612717,0.00029279,7]
[345068835,1733974246694,-883.612717,0.00029279,7]
[345068837,1733974246703,-883.612717,0.00029279,7]
[345068839,1733974246713,-883.612717,0.00029279,7]
[345068841,1733974246722,-151.0,0.00029279,7]
[345068843,1733974246731,-151.0,0.00029279,7]
[345068845,1733974246740,-151.0,0.00029279,7]
[345068847,1733974246750,-177.76518,0.00029279,7]
[345068849,1733974246759,-280.376172,0.00029279,7]
[345068851,1733974246769,-280.376172,0.00029279,7]
[345068853,1733974246778,-280.376172,0.00029279,7]
[345068855,1733974246788,-280.376172,0.00029279,7]
[345068857,1733974246797,-280.376172,0.00029279,7]
[345068859,1733974246807,-280.376172,0.00029279,7]
[345068861,1733974246817,-280.376172,0.00029279,7]
[345068863,1733974246827,-280.376172,0.00029279,7]
[345068865,1733974246838,-286.58346615,0.00029279,7]
[345068868,1733974246850,-252.88589585,0.00029279,7]
[345068870,1733974246860,-539.469362,0.00029279,7]
[345068872,1733974246870,-539.469362,0.00029279,7]
[345068874,1733974246880,-539.469362,0.00029279,7]
[345068876,1733974246902,-539.469362,0.00029279,7]
[345068878,1733974246912,-539.469362,0.00029279,7]
[345068880,1733974246922,-539.469362,0.00029279,7]
[345068882,1733974246931,-539.469362,0.00029279,7]
[345068884,1733974246940,-151.0,0.00029279,7]
[345068886,1733974246951,-151.0,0.00029279,7]
[345068888,1733974246960,-151.0,0.00029279,7]
[345068890,1733974246969,-151.0,0.00029279,7]
[345068892,1733974246979,-151.0,0.00029279,7]
[345068894,1733974246991,-160.140733,0.00029279,7]
[345068896,1733974247000,-509.75950136,0.00029279,7]
[345068898,1733974247009,-1297.888916,0.00029279,7]
[345068900,1733974247018,-1042.21550761,0.00029279,7]
[345069276,1733974309721,400.0,0.00026,120]
[345069284,1733974399313,400.0,0.00026,120]
[345069286,1733974717797,166.60285,0.00013973,2]
[345069287,1733975010728,300.0,0.000202,4]
[345069339,1733975433091,-284.8146713,0.00026,5]
[345069341,1733975433101,-300.0,0.00026891,2]
[345069343,1733975433111,-300.0,0.00026891,2]